{"text_format":"1","workbook":"xlsx","n_sheets":4,"sheets":["Custom Panel Job Costing Sheet","Custom Panel Order Form","Dealer Information sheet","Sheet1"],"not_rendered":{"charts":0,"images":5,"macros":1,"external_links":0,"defined_names":1,"comments":2,"pivot_tables":0},"unopened":[],"bounds":{"document_bytes":16777216,"sheet_cells":100000,"rows_first":2000,"rows_last":500,"rows_between":2000,"halvings":0,"cell_chars":16384,"cell_head_chars":4096},"cells_cut":0,"cells_raw":0,"read":"whole","date_system":"1900"}

{"sheet":"Custom Panel Job Costing Sheet","index":0,"n_rows":80,"n_cols":14,"rows_kept":80,"cut":false,"hidden":false,"merged":[[65,0,71,10]]}
[]
[null,null,"Eco-$mart, Inc."]
[null,null,"4411 Bee Ridge Rd. #344"]
[null,null,"Sarasota, FL 34233"]
[null,null,"(888)329-2705 ph (941)377-9460 fx"]
[null,null,"info@eco-smart.com"]
[]
["Fabric Hurricane Panel Price Quotation Sheet"]
["Bill to:",null,null,null,null,"Ship to:"]
["Name",null,null,null,null,"Name"]
["Address",null,null,null,null,"Address"]
["C, S, Z",null,null,null,null,"C, S, Z"]
["Phone",null,null,null,null,"Phone"]
["Fax",null,null,null,null,"Fax"]
["Email",null,null,null,null,"Email"]
["Date"]
["Exterior:",null,"Fastener:",null,null,null,null,null,"to the 1/2\"","to the 1\""]
[null,"Location of Opening (Direction Facing) Start at Front Door - Clockwise","Qty","Span Opening Size W or H","Overlap on Span in inches","NonSpan Opening Size W or H ","Overlap on Non Span in inches","Grommet Spacing"," \"Span\"   ","\"Non Span\" ","\nSq. Ft."," Price per panel"," Number  of  Fasteners","Notes"]
[1,null,null,null,null,null,null,12,{"$f":"D19+E19","v":0},{"$f":"F19+G19","v":0},{"$f":"I19*J19/144*C19","v":0},{"$f":"K19*'Dealer Information sheet'!$B$8","v":0},{"$f":"IF(H19=0,0,ROUNDUP(((J19-2.875)/H19)+1,0)*2*C19)","v":0}]
[2,null,null,null,null,null,null,12,0,{"$f":"F20+G20","v":0},{"$f":"I20*J20/144*C20","v":0},{"$f":"K20*'Dealer Information sheet'!$B$8","v":0},{"$f":"IF(H20=0,0,ROUNDUP(((J20-2.875)/H20)+1,0)*2*C20)","v":0}]
[3,null,null,null,null,null,null,12,0,{"$f":"F21+G21","v":0},{"$f":"I21*J21/144*C21","v":0},{"$f":"K21*'Dealer Information sheet'!$B$8","v":0},{"$f":"IF(H21=0,0,ROUNDUP(((J21-2.875)/H21)+1,0)*2*C21)","v":0}]
[4,null,null,null,null,null,null,12,0,0,0,{"$f":"K22*'Dealer Information sheet'!$B$8","v":0},0]
[5,null,null,null,null,null,null,12,0,0,0,{"$f":"K23*'Dealer Information sheet'!$B$8","v":0},0]
[6,null,null,null,null,null,null,12,0,0,0,{"$f":"K24*'Dealer Information sheet'!$B$8","v":0},0]
[7,null,null,null,null,null,null,12,0,0,0,{"$f":"K25*'Dealer Information sheet'!$B$8","v":0},0]
[8,null,null,null,null,null,null,12,0,0,0,{"$f":"K26*'Dealer Information sheet'!$B$8","v":0},0]
[9,null,null,null,null,null,null,12,0,0,0,{"$f":"K27*'Dealer Information sheet'!$B$8","v":0},0]
[10,null,null,null,null,null,null,12,0,0,0,{"$f":"K28*'Dealer Information sheet'!$B$8","v":0},0]
[11,null,null,null,null,null,null,12,0,0,0,{"$f":"K29*'Dealer Information sheet'!$B$8","v":0},0]
[12,null,null,null,null,null,null,12,0,0,0,{"$f":"K30*'Dealer Information sheet'!$B$8","v":0},0]
[13,null,null,null,null,null,null,12,0,0,0,{"$f":"K31*'Dealer Information sheet'!$B$8","v":0},0]
[14,null,null,null,null,null,null,12,0,0,0,{"$f":"K32*'Dealer Information sheet'!$B$8","v":0},0]
[15,null,null,null,null,null,null,12,0,0,0,{"$f":"K33*'Dealer Information sheet'!$B$8","v":0},0]
[16,null,null,null,null,null,null,12,0,0,0,{"$f":"K34*'Dealer Information sheet'!$B$8","v":0},0]
[17,null,null,null,null,null,null,12,0,0,0,{"$f":"K35*'Dealer Information sheet'!$B$8","v":0},0]
[18,null,null,null,null,null,null,12,0,0,0,{"$f":"K36*'Dealer Information sheet'!$B$8","v":0},0]
[19,null,null,null,null,null,null,12,0,0,0,{"$f":"K37*'Dealer Information sheet'!$B$8","v":0},0]
[20,null,null,null,null,null,null,12,0,0,0,{"$f":"K38*'Dealer Information sheet'!$B$8","v":0},0]
[21,null,null,null,null,null,null,12,0,0,0,{"$f":"K39*'Dealer Information sheet'!$B$8","v":0},0]
[22,null,null,null,null,null,null,12,0,0,0,{"$f":"K40*'Dealer Information sheet'!$B$8","v":0},0]
[23,null,null,null,null,null,null,12,0,0,0,{"$f":"K41*'Dealer Information sheet'!$B$8","v":0},0]
[24,null,null,null,null,null,null,12,0,0,0,{"$f":"K42*'Dealer Information sheet'!$B$8","v":0},0]
[25,null,null,null,null,null,null,12,0,0,0,{"$f":"K43*'Dealer Information sheet'!$B$8","v":0},0]
[26,null,null,null,null,null,null,12,0,0,0,{"$f":"K44*'Dealer Information sheet'!$B$8","v":0},0]
[27,null,null,null,null,null,null,12,0,0,0,{"$f":"K45*'Dealer Information sheet'!$B$8","v":0},0]
[28,null,null,null,null,null,null,12,0,0,0,{"$f":"K46*'Dealer Information sheet'!$B$8","v":0},0]
[29,null,null,null,null,null,null,12,0,0,0,{"$f":"K47*'Dealer Information sheet'!$B$8","v":0},0]
[30,null,null,null,null,null,null,12,0,0,0,{"$f":"K48*'Dealer Information sheet'!$B$8","v":0},0]
[31,null,null,null,null,null,null,12,0,0,0,{"$f":"K49*'Dealer Information sheet'!$B$8","v":0},0]
[32,null,null,null,null,null,null,12,0,0,0,{"$f":"K50*'Dealer Information sheet'!$B$8","v":0},0]
[33,null,null,null,null,null,null,12,0,0,0,{"$f":"K51*'Dealer Information sheet'!$B$8","v":0},0]
[34,null,null,null,null,null,null,12,0,0,0,{"$f":"K52*'Dealer Information sheet'!$B$8","v":0},0]
[35,null,null,null,null,null,null,12,0,0,0,{"$f":"K53*'Dealer Information sheet'!$B$8","v":0},0]
[null,"Column Totals",{"$f":"SUM(C19:C53)","v":0},null,null,null,null,null,null,null,{"$f":"SUM(K19:K53)","v":0},{"$f":"SUM(L19:L53)","v":0},{"$f":"SUM(M19:M53)","v":0}]
[null,null,null,null,null,null,null,null,null,null,null,"Total SFT",{"$f":"K54","v":0}]
[null,null,null,null,null,null,null,null,null,null,"Total Fabric Cost",null,{"$f":"L54","v":0}]
[null,null,null,null,null,null,null,null,2,null,null,"Total Fastener Cost",{"$f":"M54*I57","v":0}]
[null,null,null,null,null,null,null,null,null,null,null,"Material Cost ",{"$f":"M56+M57","v":0}]
[null,null,null,null,null,null,null,null,null,null,"Sales Tax",7.0000000000000007E-2,{"$f":"+M58*L59","v":0}]
[null,null,null,null,null,null,null,null,null,null,null,"Freight",{"$f":"+IF(M55*1.4<75,75,M55*1.4)","v":75}]
[null,null,null,null,null,null,null,null,null,null,null,"Subtotal",{"$f":"SUM(M58:M60)","v":75}]
[null,null,null,null,null,null,null,null,null,null,null,"Processing (waived if paying by check)",{"$f":"+M61*0.037","v":2.7749999999999999}]
[null,null,null,null,null,null,null,null,null,null,null,"Total Material Cost Paid to Eco-$mart",{"$f":"SUM(M61:M62)","v":77.775000000000006}]
[null,null,null,null,null,null,null,null,null,null,null,"Labor: Paid to Installer upon Completion",{"$f":"+K54*2.5","v":0}]
[null,null,null,null,null,null,null,null,null,null,null,"Total Project Cost:",{"$f":"SUM(M63:M64)","v":77.775000000000006}]
["By acceptance of this Quotation, purchaser acknowledges and agrees that Eco-$mart neither provides nor has any responsibility for any product or installation warranties, oral or written, expressed or implied, including the IMPLIED WARRANTIES OF MERCHANTABILITY AND FITNESS FOR A PARTICULAR PURPOSE. Products are warranted by the manufacturer only and in the event of any product or installation defects, purchaser shall seek its remedies solely from the manufacturer or installer, regardless of the legal theory of recovery. Additionally, in the event of a dispute, the prevailing party shall be entitled to reimbursement of its attorneys fees and costs from the non-prevailing party, including through all appeals. Purchaser agrees that Eco-$mart's liability in any event shall be limited to 10% of the Invoice amount, or $1000.00, whichever is less."]
[]
[]
[]
[]
[]
[]
[]
["Approved by / Signature: ____________________________________________________________________________________________"]
["Date: ________________________________________"]
["Credit Card Number / Exp. Date / Code / Billing Address:"]
["_________________________________________________________________________________________________________________"]
[]
["Limitations: Fabric Shield: Span min = 9”, Span max = 108”; Non-Span min = 12”, Non-Span max = 144”."]
[" Astroguard: Span Max: 18', Non-Span Max - Unlimited (limit is unweildiness)"]

{"sheet":"Custom Panel Order Form","index":1,"n_rows":56,"n_cols":7,"rows_kept":56,"cut":false,"hidden":true,"merged":[]}
[]
[null,null,null,"      Storm Panel ORDER FORM                                                                                                                           "]
[null,null,null,"      3395 Addison Drive – Pensacola, FL 32514"]
[null,null,null,null,"                         Fax to 1-800-883-3577     "]
[]
[]
["Date: ",{"$f":"IF('Custom Panel Job Costing Sheet'!B16=0,\"\",'Custom Panel Job Costing Sheet'!B16)","v":""}]
["Business Name:                                                          ",null,{"$f":"IF('Dealer Information sheet'!B1=0,\"\",'Dealer Information sheet'!B1)","v":"Eco-$mart, Inc."},null,null,"  Account #",{"$f":"IF('Dealer Information sheet'!B2=0,\"\",'Dealer Information sheet'!B2)","v":45007950}]
["Phone #:                                                                      ",null,{"$f":"IF('Dealer Information sheet'!B3=0,\"\",'Dealer Information sheet'!B3)","v":"941-376-8484"},null,null,"Fax #",{"$f":"IF('Dealer Information sheet'!B4=0,\"\",'Dealer Information sheet'!B4)","v":"941-377-9460"}]
["E-mail Address: ",null,{"$f":"IF('Dealer Information sheet'!B5=0,\"\",'Dealer Information sheet'!B5)","v":"mross@eco-smart.com"},null,null,"Job Name ",{"$f":"IF('Custom Panel Job Costing Sheet'!B10=0,\"\",'Custom Panel Job Costing Sheet'!B10)","v":""}]
["Contact Name:                                                                           ",null,{"$f":"IF('Dealer Information sheet'!B6=0,\"\",'Dealer Information sheet'!B6)","v":"Matt Ross"},null,null," Dealer PO#"]
[]
["Ship-to:"]
[{"$f":"IF('Custom Panel Job Costing Sheet'!G10=0,\"\",'Custom Panel Job Costing Sheet'!G10)","v":""}]
[{"$f":"IF('Custom Panel Job Costing Sheet'!G11=0,\"\",'Custom Panel Job Costing Sheet'!G11)","v":""}]
[{"$f":"IF('Custom Panel Job Costing Sheet'!G12=0,\"\",'Custom Panel Job Costing Sheet'!G12)","v":""}]
[{"$f":"IF('Custom Panel Job Costing Sheet'!G13=0,\"\",'Custom Panel Job Costing Sheet'!G13)","v":""}]
[]
[]
[null,null,"Must enter a value for Grommet spacing. If no value given it will default to 12\"."]
["  QTY","SPAN 9”min – 108” max","NON-SPAN  12” min – 240” max","Grommet spacing 3\" min to 12\" max","Fastener Kits                        (if ordering from us)","Edge Reinforcement Kit (25 patches & grommets per kit)","      SPECIAL INSTRUCTIONS"]
[{"$f":"IF('Custom Panel Job Costing Sheet'!C19=0,\"\",'Custom Panel Job Costing Sheet'!C19)","v":""},{"$f":"IF('Custom Panel Job Costing Sheet'!I19=0,\"\",'Custom Panel Job Costing Sheet'!I19)","v":""},{"$f":"IF('Custom Panel Job Costing Sheet'!J19=0,\"\",'Custom Panel Job Costing Sheet'!J19)","v":""},{"$f":"IF('Custom Panel Job Costing Sheet'!H19=0,\"\",'Custom Panel Job Costing Sheet'!H19)","v":12}]
[{"$f":"IF('Custom Panel Job Costing Sheet'!C20=0,\"\",'Custom Panel Job Costing Sheet'!C20)","v":""},{"$f":"IF('Custom Panel Job Costing Sheet'!I20=0,\"\",'Custom Panel Job Costing Sheet'!I20)","v":""},{"$f":"IF('Custom Panel Job Costing Sheet'!J20=0,\"\",'Custom Panel Job Costing Sheet'!J20)","v":""},{"$f":"IF('Custom Panel Job Costing Sheet'!H20=0,\"\",'Custom Panel Job Costing Sheet'!H20)","v":12}]
[{"$f":"IF('Custom Panel Job Costing Sheet'!C21=0,\"\",'Custom Panel Job Costing Sheet'!C21)","v":""},{"$f":"IF('Custom Panel Job Costing Sheet'!I21=0,\"\",'Custom Panel Job Costing Sheet'!I21)","v":""},{"$f":"IF('Custom Panel Job Costing Sheet'!J21=0,\"\",'Custom Panel Job Costing Sheet'!J21)","v":""},{"$f":"IF('Custom Panel Job Costing Sheet'!H21=0,\"\",'Custom Panel Job Costing Sheet'!H21)","v":12}]
[{"$f":"IF('Custom Panel Job Costing Sheet'!C22=0,\"\",'Custom Panel Job Costing Sheet'!C22)","v":""},{"$f":"IF('Custom Panel Job Costing Sheet'!I22=0,\"\",'Custom Panel Job Costing Sheet'!I22)","v":""},{"$f":"IF('Custom Panel Job Costing Sheet'!J22=0,\"\",'Custom Panel Job Costing Sheet'!J22)","v":""},{"$f":"IF('Custom Panel Job Costing Sheet'!H22=0,\"\",'Custom Panel Job Costing Sheet'!H22)","v":12}]
[{"$f":"IF('Custom Panel Job Costing Sheet'!C23=0,\"\",'Custom Panel Job Costing Sheet'!C23)","v":""},{"$f":"IF('Custom Panel Job Costing Sheet'!I23=0,\"\",'Custom Panel Job Costing Sheet'!I23)","v":""},{"$f":"IF('Custom Panel Job Costing Sheet'!J23=0,\"\",'Custom Panel Job Costing Sheet'!J23)","v":""},{"$f":"IF('Custom Panel Job Costing Sheet'!H23=0,\"\",'Custom Panel Job Costing Sheet'!H23)","v":12}]
[{"$f":"IF('Custom Panel Job Costing Sheet'!C24=0,\"\",'Custom Panel Job Costing Sheet'!C24)","v":""},{"$f":"IF('Custom Panel Job Costing Sheet'!I24=0,\"\",'Custom Panel Job Costing Sheet'!I24)","v":""},{"$f":"IF('Custom Panel Job Costing Sheet'!J24=0,\"\",'Custom Panel Job Costing Sheet'!J24)","v":""},{"$f":"IF('Custom Panel Job Costing Sheet'!H24=0,\"\",'Custom Panel Job Costing Sheet'!H24)","v":12}]
[{"$f":"IF('Custom Panel Job Costing Sheet'!C25=0,\"\",'Custom Panel Job Costing Sheet'!C25)","v":""},{"$f":"IF('Custom Panel Job Costing Sheet'!I25=0,\"\",'Custom Panel Job Costing Sheet'!I25)","v":""},{"$f":"IF('Custom Panel Job Costing Sheet'!J25=0,\"\",'Custom Panel Job Costing Sheet'!J25)","v":""},{"$f":"IF('Custom Panel Job Costing Sheet'!H25=0,\"\",'Custom Panel Job Costing Sheet'!H25)","v":12}]
[{"$f":"IF('Custom Panel Job Costing Sheet'!C26=0,\"\",'Custom Panel Job Costing Sheet'!C26)","v":""},{"$f":"IF('Custom Panel Job Costing Sheet'!I26=0,\"\",'Custom Panel Job Costing Sheet'!I26)","v":""},{"$f":"IF('Custom Panel Job Costing Sheet'!J26=0,\"\",'Custom Panel Job Costing Sheet'!J26)","v":""},{"$f":"IF('Custom Panel Job Costing Sheet'!H26=0,\"\",'Custom Panel Job Costing Sheet'!H26)","v":12}]
[{"$f":"IF('Custom Panel Job Costing Sheet'!C27=0,\"\",'Custom Panel Job Costing Sheet'!C27)","v":""},{"$f":"IF('Custom Panel Job Costing Sheet'!I27=0,\"\",'Custom Panel Job Costing Sheet'!I27)","v":""},{"$f":"IF('Custom Panel Job Costing Sheet'!J27=0,\"\",'Custom Panel Job Costing Sheet'!J27)","v":""},{"$f":"IF('Custom Panel Job Costing Sheet'!H27=0,\"\",'Custom Panel Job Costing Sheet'!H27)","v":12}]
[{"$f":"IF('Custom Panel Job Costing Sheet'!C28=0,\"\",'Custom Panel Job Costing Sheet'!C28)","v":""},{"$f":"IF('Custom Panel Job Costing Sheet'!I28=0,\"\",'Custom Panel Job Costing Sheet'!I28)","v":""},{"$f":"IF('Custom Panel Job Costing Sheet'!J28=0,\"\",'Custom Panel Job Costing Sheet'!J28)","v":""},{"$f":"IF('Custom Panel Job Costing Sheet'!H28=0,\"\",'Custom Panel Job Costing Sheet'!H28)","v":12}]
[{"$f":"IF('Custom Panel Job Costing Sheet'!C29=0,\"\",'Custom Panel Job Costing Sheet'!C29)","v":""},{"$f":"IF('Custom Panel Job Costing Sheet'!I29=0,\"\",'Custom Panel Job Costing Sheet'!I29)","v":""},{"$f":"IF('Custom Panel Job Costing Sheet'!J29=0,\"\",'Custom Panel Job Costing Sheet'!J29)","v":""},{"$f":"IF('Custom Panel Job Costing Sheet'!H29=0,\"\",'Custom Panel Job Costing Sheet'!H29)","v":12}]
[{"$f":"IF('Custom Panel Job Costing Sheet'!C30=0,\"\",'Custom Panel Job Costing Sheet'!C30)","v":""},{"$f":"IF('Custom Panel Job Costing Sheet'!I30=0,\"\",'Custom Panel Job Costing Sheet'!I30)","v":""},{"$f":"IF('Custom Panel Job Costing Sheet'!J30=0,\"\",'Custom Panel Job Costing Sheet'!J30)","v":""},{"$f":"IF('Custom Panel Job Costing Sheet'!H30=0,\"\",'Custom Panel Job Costing Sheet'!H30)","v":12}]
[{"$f":"IF('Custom Panel Job Costing Sheet'!C31=0,\"\",'Custom Panel Job Costing Sheet'!C31)","v":""},{"$f":"IF('Custom Panel Job Costing Sheet'!I31=0,\"\",'Custom Panel Job Costing Sheet'!I31)","v":""},{"$f":"IF('Custom Panel Job Costing Sheet'!J31=0,\"\",'Custom Panel Job Costing Sheet'!J31)","v":""},{"$f":"IF('Custom Panel Job Costing Sheet'!H31=0,\"\",'Custom Panel Job Costing Sheet'!H31)","v":12}]
[{"$f":"IF('Custom Panel Job Costing Sheet'!C32=0,\"\",'Custom Panel Job Costing Sheet'!C32)","v":""},{"$f":"IF('Custom Panel Job Costing Sheet'!I32=0,\"\",'Custom Panel Job Costing Sheet'!I32)","v":""},{"$f":"IF('Custom Panel Job Costing Sheet'!J32=0,\"\",'Custom Panel Job Costing Sheet'!J32)","v":""},{"$f":"IF('Custom Panel Job Costing Sheet'!H32=0,\"\",'Custom Panel Job Costing Sheet'!H32)","v":12}]
[{"$f":"IF('Custom Panel Job Costing Sheet'!C33=0,\"\",'Custom Panel Job Costing Sheet'!C33)","v":""},{"$f":"IF('Custom Panel Job Costing Sheet'!I33=0,\"\",'Custom Panel Job Costing Sheet'!I33)","v":""},{"$f":"IF('Custom Panel Job Costing Sheet'!J33=0,\"\",'Custom Panel Job Costing Sheet'!J33)","v":""},{"$f":"IF('Custom Panel Job Costing Sheet'!H33=0,\"\",'Custom Panel Job Costing Sheet'!H33)","v":12}]
[{"$f":"IF('Custom Panel Job Costing Sheet'!C34=0,\"\",'Custom Panel Job Costing Sheet'!C34)","v":""},{"$f":"IF('Custom Panel Job Costing Sheet'!I34=0,\"\",'Custom Panel Job Costing Sheet'!I34)","v":""},{"$f":"IF('Custom Panel Job Costing Sheet'!J34=0,\"\",'Custom Panel Job Costing Sheet'!J34)","v":""},{"$f":"IF('Custom Panel Job Costing Sheet'!H34=0,\"\",'Custom Panel Job Costing Sheet'!H34)","v":12}]
[{"$f":"IF('Custom Panel Job Costing Sheet'!C35=0,\"\",'Custom Panel Job Costing Sheet'!C35)","v":""},{"$f":"IF('Custom Panel Job Costing Sheet'!I35=0,\"\",'Custom Panel Job Costing Sheet'!I35)","v":""},{"$f":"IF('Custom Panel Job Costing Sheet'!J35=0,\"\",'Custom Panel Job Costing Sheet'!J35)","v":""},{"$f":"IF('Custom Panel Job Costing Sheet'!H35=0,\"\",'Custom Panel Job Costing Sheet'!H35)","v":12}]
[{"$f":"IF('Custom Panel Job Costing Sheet'!C36=0,\"\",'Custom Panel Job Costing Sheet'!C36)","v":""},{"$f":"IF('Custom Panel Job Costing Sheet'!I36=0,\"\",'Custom Panel Job Costing Sheet'!I36)","v":""},{"$f":"IF('Custom Panel Job Costing Sheet'!J36=0,\"\",'Custom Panel Job Costing Sheet'!J36)","v":""},{"$f":"IF('Custom Panel Job Costing Sheet'!H36=0,\"\",'Custom Panel Job Costing Sheet'!H36)","v":12}]
[{"$f":"IF('Custom Panel Job Costing Sheet'!C37=0,\"\",'Custom Panel Job Costing Sheet'!C37)","v":""},{"$f":"IF('Custom Panel Job Costing Sheet'!I37=0,\"\",'Custom Panel Job Costing Sheet'!I37)","v":""},{"$f":"IF('Custom Panel Job Costing Sheet'!J37=0,\"\",'Custom Panel Job Costing Sheet'!J37)","v":""},{"$f":"IF('Custom Panel Job Costing Sheet'!H37=0,\"\",'Custom Panel Job Costing Sheet'!H37)","v":12}]
[{"$f":"IF('Custom Panel Job Costing Sheet'!C38=0,\"\",'Custom Panel Job Costing Sheet'!C38)","v":""},{"$f":"IF('Custom Panel Job Costing Sheet'!I38=0,\"\",'Custom Panel Job Costing Sheet'!I38)","v":""},{"$f":"IF('Custom Panel Job Costing Sheet'!J38=0,\"\",'Custom Panel Job Costing Sheet'!J38)","v":""},{"$f":"IF('Custom Panel Job Costing Sheet'!H38=0,\"\",'Custom Panel Job Costing Sheet'!H38)","v":12}]
[{"$f":"IF('Custom Panel Job Costing Sheet'!C39=0,\"\",'Custom Panel Job Costing Sheet'!C39)","v":""},{"$f":"IF('Custom Panel Job Costing Sheet'!I39=0,\"\",'Custom Panel Job Costing Sheet'!I39)","v":""},{"$f":"IF('Custom Panel Job Costing Sheet'!J39=0,\"\",'Custom Panel Job Costing Sheet'!J39)","v":""},{"$f":"IF('Custom Panel Job Costing Sheet'!H39=0,\"\",'Custom Panel Job Costing Sheet'!H39)","v":12}]
[{"$f":"IF('Custom Panel Job Costing Sheet'!C40=0,\"\",'Custom Panel Job Costing Sheet'!C40)","v":""},{"$f":"IF('Custom Panel Job Costing Sheet'!I40=0,\"\",'Custom Panel Job Costing Sheet'!I40)","v":""},{"$f":"IF('Custom Panel Job Costing Sheet'!J40=0,\"\",'Custom Panel Job Costing Sheet'!J40)","v":""},{"$f":"IF('Custom Panel Job Costing Sheet'!H40=0,\"\",'Custom Panel Job Costing Sheet'!H40)","v":12}]
[{"$f":"IF('Custom Panel Job Costing Sheet'!C41=0,\"\",'Custom Panel Job Costing Sheet'!C41)","v":""},{"$f":"IF('Custom Panel Job Costing Sheet'!I41=0,\"\",'Custom Panel Job Costing Sheet'!I41)","v":""},{"$f":"IF('Custom Panel Job Costing Sheet'!J41=0,\"\",'Custom Panel Job Costing Sheet'!J41)","v":""},{"$f":"IF('Custom Panel Job Costing Sheet'!H41=0,\"\",'Custom Panel Job Costing Sheet'!H41)","v":12}]
[{"$f":"IF('Custom Panel Job Costing Sheet'!C42=0,\"\",'Custom Panel Job Costing Sheet'!C42)","v":""},{"$f":"IF('Custom Panel Job Costing Sheet'!I42=0,\"\",'Custom Panel Job Costing Sheet'!I42)","v":""},{"$f":"IF('Custom Panel Job Costing Sheet'!J42=0,\"\",'Custom Panel Job Costing Sheet'!J42)","v":""},{"$f":"IF('Custom Panel Job Costing Sheet'!H42=0,\"\",'Custom Panel Job Costing Sheet'!H42)","v":12}]
[{"$f":"IF('Custom Panel Job Costing Sheet'!C43=0,\"\",'Custom Panel Job Costing Sheet'!C43)","v":""},{"$f":"IF('Custom Panel Job Costing Sheet'!I43=0,\"\",'Custom Panel Job Costing Sheet'!I43)","v":""},{"$f":"IF('Custom Panel Job Costing Sheet'!J43=0,\"\",'Custom Panel Job Costing Sheet'!J43)","v":""},{"$f":"IF('Custom Panel Job Costing Sheet'!H43=0,\"\",'Custom Panel Job Costing Sheet'!H43)","v":12}]
[{"$f":"IF('Custom Panel Job Costing Sheet'!C44=0,\"\",'Custom Panel Job Costing Sheet'!C44)","v":""},{"$f":"IF('Custom Panel Job Costing Sheet'!I44=0,\"\",'Custom Panel Job Costing Sheet'!I44)","v":""},{"$f":"IF('Custom Panel Job Costing Sheet'!J44=0,\"\",'Custom Panel Job Costing Sheet'!J44)","v":""},{"$f":"IF('Custom Panel Job Costing Sheet'!H44=0,\"\",'Custom Panel Job Costing Sheet'!H44)","v":12}]
[{"$f":"IF('Custom Panel Job Costing Sheet'!C45=0,\"\",'Custom Panel Job Costing Sheet'!C45)","v":""},{"$f":"IF('Custom Panel Job Costing Sheet'!I45=0,\"\",'Custom Panel Job Costing Sheet'!I45)","v":""},{"$f":"IF('Custom Panel Job Costing Sheet'!J45=0,\"\",'Custom Panel Job Costing Sheet'!J45)","v":""},{"$f":"IF('Custom Panel Job Costing Sheet'!H45=0,\"\",'Custom Panel Job Costing Sheet'!H45)","v":12}]
[{"$f":"IF('Custom Panel Job Costing Sheet'!C46=0,\"\",'Custom Panel Job Costing Sheet'!C46)","v":""},{"$f":"IF('Custom Panel Job Costing Sheet'!I46=0,\"\",'Custom Panel Job Costing Sheet'!I46)","v":""},{"$f":"IF('Custom Panel Job Costing Sheet'!J46=0,\"\",'Custom Panel Job Costing Sheet'!J46)","v":""},{"$f":"IF('Custom Panel Job Costing Sheet'!H46=0,\"\",'Custom Panel Job Costing Sheet'!H46)","v":12}]
[{"$f":"IF('Custom Panel Job Costing Sheet'!C47=0,\"\",'Custom Panel Job Costing Sheet'!C47)","v":""},{"$f":"IF('Custom Panel Job Costing Sheet'!I47=0,\"\",'Custom Panel Job Costing Sheet'!I47)","v":""},{"$f":"IF('Custom Panel Job Costing Sheet'!J47=0,\"\",'Custom Panel Job Costing Sheet'!J47)","v":""},{"$f":"IF('Custom Panel Job Costing Sheet'!H47=0,\"\",'Custom Panel Job Costing Sheet'!H47)","v":12}]
[{"$f":"IF('Custom Panel Job Costing Sheet'!C48=0,\"\",'Custom Panel Job Costing Sheet'!C48)","v":""},{"$f":"IF('Custom Panel Job Costing Sheet'!I48=0,\"\",'Custom Panel Job Costing Sheet'!I48)","v":""},{"$f":"IF('Custom Panel Job Costing Sheet'!J48=0,\"\",'Custom Panel Job Costing Sheet'!J48)","v":""},{"$f":"IF('Custom Panel Job Costing Sheet'!H48=0,\"\",'Custom Panel Job Costing Sheet'!H48)","v":12}]
[{"$f":"IF('Custom Panel Job Costing Sheet'!C49=0,\"\",'Custom Panel Job Costing Sheet'!C49)","v":""},{"$f":"IF('Custom Panel Job Costing Sheet'!I49=0,\"\",'Custom Panel Job Costing Sheet'!I49)","v":""},{"$f":"IF('Custom Panel Job Costing Sheet'!J49=0,\"\",'Custom Panel Job Costing Sheet'!J49)","v":""},{"$f":"IF('Custom Panel Job Costing Sheet'!H49=0,\"\",'Custom Panel Job Costing Sheet'!H49)","v":12}]
[{"$f":"IF('Custom Panel Job Costing Sheet'!C50=0,\"\",'Custom Panel Job Costing Sheet'!C50)","v":""},{"$f":"IF('Custom Panel Job Costing Sheet'!I50=0,\"\",'Custom Panel Job Costing Sheet'!I50)","v":""},{"$f":"IF('Custom Panel Job Costing Sheet'!J50=0,\"\",'Custom Panel Job Costing Sheet'!J50)","v":""},{"$f":"IF('Custom Panel Job Costing Sheet'!H50=0,\"\",'Custom Panel Job Costing Sheet'!H50)","v":12}]
[{"$f":"IF('Custom Panel Job Costing Sheet'!C51=0,\"\",'Custom Panel Job Costing Sheet'!C51)","v":""},{"$f":"IF('Custom Panel Job Costing Sheet'!I51=0,\"\",'Custom Panel Job Costing Sheet'!I51)","v":""},{"$f":"IF('Custom Panel Job Costing Sheet'!J51=0,\"\",'Custom Panel Job Costing Sheet'!J51)","v":""},{"$f":"IF('Custom Panel Job Costing Sheet'!H51=0,\"\",'Custom Panel Job Costing Sheet'!H51)","v":12}]
[{"$f":"IF('Custom Panel Job Costing Sheet'!C52=0,\"\",'Custom Panel Job Costing Sheet'!C52)","v":""},{"$f":"IF('Custom Panel Job Costing Sheet'!I52=0,\"\",'Custom Panel Job Costing Sheet'!I52)","v":""},{"$f":"IF('Custom Panel Job Costing Sheet'!J52=0,\"\",'Custom Panel Job Costing Sheet'!J52)","v":""},{"$f":"IF('Custom Panel Job Costing Sheet'!H52=0,\"\",'Custom Panel Job Costing Sheet'!H52)","v":12}]
[{"$f":"IF('Custom Panel Job Costing Sheet'!C53=0,\"\",'Custom Panel Job Costing Sheet'!C53)","v":""},{"$f":"IF('Custom Panel Job Costing Sheet'!I53=0,\"\",'Custom Panel Job Costing Sheet'!I53)","v":""},{"$f":"IF('Custom Panel Job Costing Sheet'!J53=0,\"\",'Custom Panel Job Costing Sheet'!J53)","v":""},{"$f":"IF('Custom Panel Job Costing Sheet'!H53=0,\"\",'Custom Panel Job Costing Sheet'!H53)","v":12}]

{"sheet":"Dealer Information sheet","index":2,"n_rows":8,"n_cols":2,"rows_kept":8,"cut":false,"hidden":false,"merged":[]}
["Dealer Name:","Eco-$mart, Inc."]
["Dealer Account Number:",45007950]
["Dealer Phone #:","941-376-8484"]
["Dealer Fax #:","941-377-9460"]
["E-mail Address:","mross@eco-smart.com"]
["Dealer Contact:","Matt Ross"]
[]
[" Custom Panel price per/SFT",7.95]

{"sheet":"Sheet1","index":3,"n_rows":0,"n_cols":0,"rows_kept":0,"cut":false,"hidden":false,"merged":[]}